bitfinex-derivatives/quotes_BNBF0:USTF0_20250326
["timestamp","ask_amount","ask_price","bid_price","bid_amount"]
[1743004667523,1.21527025,623.93,622.95,0.32105305]
[1743004667723,1.255,623.94,622.95,0.32105305]
[1743004667921,1.21530266,623.93,622.95,0.32105305]
[1743004668121,1.255,623.94,622.95,0.32105305]
[1743004668326,1.21501071,623.93,622.95,0.32105305]
[1743004668524,1.255,623.94,622.95,0.32105305]
[1743004668929,1.21500655,623.93,622.95,0.32105305]
[1743004669128,1.255,623.94,622.95,0.32105305]
[1743004674626,2.89,623.94,622.95,0.32105305]
[1743004675431,0.90418659,623.93,622.95,0.32105305]
[1743004675726,1.066,623.92,622.95,0.32105305]
[1743004675927,3.16718659,623.92,622.95,0.32105305]
[1743004676428,2.263,623.92,622.95,0.32105305]
[1743004680932,1.171,623.91,622.95,0.32105305]
[1743004688534,1.171,623.91,623.28,1.19457222]
[1743004688736,1.171,623.91,623.29,0.32087792]
[1743004690442,1.279,623.9,623.29,0.32087792]
[1743004692737,1.332,623.89,623.29,0.32087792]
[1743004696342,1.071,623.88,623.29,0.32087792]
[1743004702541,1.102,623.87,623.29,0.32087792]
[1743004704549,1.021,623.86,623.29,0.32087792]
[1743004709249,1.111,623.85,623.29,0.32087792]
[1743004711256,1.111,623.85,623.3,1.19457222]
[1743004711450,1.111,623.85,623.31,0.32086762]
[1743004711850,1.164,623.84,623.31,0.32086762]
[1743004716948,1.196,623.83,623.31,0.32086762]
[1743004718057,1.196,623.83,623.4,1.19457222]
[1743004718354,1.196,623.83,623.41,0.32081615]
[1743004719864,1.196,623.83,623.65,1.19457222]
[1743004722366,1.196,623.83,623.68,1.19457222]
[1743004724663,1.196,623.83,623.7,1.19457222]
[1743004726669,1.196,623.83,623.71,1.19457222]
[1743004728770,1.196,623.83,623.75,1.19457222]
[1743004731471,1.196,623.83,623.73,1.19457222]
[1743004733471,1.196,623.83,623.67,1.19457222]
[1743004733771,1.196,623.83,623.68,0.32067727]
[1743004737972,1.111,623.85,623.68,0.32067727]
[1743004748884,1.111,623.85,623.7,1.19457222]
[1743004750884,1.111,623.85,623.78,1.19457222]
[1743004752785,1.111,623.85,623.81,1.19457222]
[1743004754893,1.111,623.85,623.74,1.19457222]
[1743004757191,1.111,623.85,623.73,1.19457222]
[1743004758294,3.273,623.93,623.73,1.19457222]
[1743004759998,3.273,623.93,623.68,0.32067727]
[1743004760702,4.446,623.93,623.68,0.32067727]
[1743004762398,4.446,623.93,623.68,1.51524949]
[1743004763400,4.446,623.93,623.68,0.32067727]
[1743004764202,5.631,623.93,623.68,0.32067727]
[1743004767204,5.631,623.93,623.78,1.19457222]
[1743004769400,5.631,623.93,623.77,1.19457222]
[1743004769604,4.589,623.93,623.77,1.19457222]
[1743004769805,3.588,623.93,623.77,1.19457222]
[1743004770909,2.358,623.93,623.8,1.19457222]
[1743004771704,2.358,623.93,623.83,1.19457222]
[1743004772902,2.358,623.93,623.85,1.19457222]
[1743004774404,2.358,623.93,623.92,1.19457222]
[1743004775809,1.185,623.93,623.92,1.19457222]
[1743004778410,1.185,623.93,623.91,1.19457222]
[1743004781019,1.185,623.93,623.86,1.19457222]
[1743004783822,1.185,623.93,623.74,1.19457222]
[1743004787624,1.185,623.93,623.81,1.19457222]
[1743004788524,1.185,623.93,623.82,0.3206053]
[1743004789823,1.185,623.93,623.83,1.19900431]
[1743004790020,1.185,623.93,623.83,1.51960447]
[1743004791923,1.185,623.93,623.83,0.32060016]
[1743004792330,2.067,624.08,623.83,0.32060016]
[1743004794530,3.203,624.08,623.83,0.32060016]
[1743004795533,4.391,624.08,623.83,0.32060016]
[1743004796435,4.391,624.08,623.99,1.19900431]
[1743004798836,4.391,624.08,623.97,1.19900431]
[1743004801242,4.391,624.08,623.94,1.19900431]
[1743004802236,3.273,624.08,623.94,1.19900431]
[1743004812438,2.137,624.08,623.94,1.19900431]
[1743004812638,0.949,624.08,623.94,1.19900431]
[1743004815446,0.949,624.08,623.5,1.19900431]
[1743004815639,0.936,624.16,623.5,1.19900431]
[1743004816143,1.209,624.15,623.5,1.19900431]
[1743004817242,1.209,624.15,622.59,2.44308441]
[1743004817243,1.209,624.15,623.23,1.19900431]
[1743004817545,1.209,624.15,623.24,0.32090366]
[1743004818143,2.659,624.14,623.24,0.32090366]
[1743004821748,1.21774162,624.08,623.24,1.51990797]
[1743004821949,1.21774162,624.07,623.24,1.51990797]
[1743004822146,1.21774162,624.06,623.24,1.51990797]
[1743004822449,1.21774162,624.05,623.24,1.51990797]
[1743004822743,1.21774162,624.04,623.24,1.51990797]
[1743004822942,1.21774162,624.03,623.24,1.51990797]
[1743004823147,1.21774162,624.02,623.24,1.51990797]
[1743004823341,1.21774162,624.04,623.24,1.51990797]
[1743004823548,0.90716625,624.02,623.24,0.32090366]
[1743004823742,2.12490787,624.02,623.24,0.32090366]
[1743004823949,0.90716625,624.02,623.24,0.32090366]
[1743004824248,2.12490787,624.12,623.24,0.32090366]
[1743004824443,1.21774162,624.11,623.24,0.32090366]
[1743004824650,1.21774162,624.1,623.24,0.32090366]
[1743004824947,1.21774162,624.09,623.24,0.32090366]
[1743004825141,1.21774162,624.1,623.24,0.32090366]
[1743004825346,0.90716625,624.08,623.24,0.32090366]
[1743004825947,1.21774162,624.11,623.24,0.32090366]
[1743004826845,1.21774162,624.12,623.24,0.32090366]
[1743004828249,2.12490787,624.13,623.24,0.32090366]
[1743004829850,1.164,624.12,623.24,0.32090366]
[1743004832962,1.21215775,624.11,623.24,0.32090366]
[1743004833557,1.21215775,624.1,623.24,0.32090366]
[1743004833760,1.21215775,624.11,623.24,0.32090366]
[1743004833964,1.21215775,624.1,623.24,0.32090366]
[1743004834263,1.21215775,624.11,623.24,0.32090366]
[1743004834463,1.164,624.12,623.24,0.32090366]
[1743004835465,1.172,624.11,623.24,0.32090366]
[1743004836164,2.07916625,624.11,623.24,0.32090366]
[1743004836364,3.291324,624.11,623.24,0.32090366]
[1743004837764,1.21062966,624.1,623.24,0.32090366]
[1743004837967,3.28980207,624.11,623.24,0.32090366]
[1743004838565,2.38263582,624.11,623.24,0.32090366]
[1743004839365,3.28435748,624.11,623.24,0.32090366]
[1743004839567,1.21063582,624.1,623.24,0.32090366]
[1743004839766,3.284376,624.11,623.24,0.32090366]
[1743004840167,2.38265434,624.11,623.24,0.32090366]
[1743004840367,1.172,624.11,623.24,0.32090366]
[1743004842771,0.879,624.1,623.24,0.32090366]
[1743004843671,2.99120704,624.1,623.24,0.32090366]
[1743004843870,1.21065588,624.09,623.24,0.32090366]
[1743004844073,1.21065588,624.08,623.24,0.32090366]
[1743004844372,1.21065588,624.07,623.24,0.32090366]
[1743004844568,1.21065588,624.06,623.24,0.32090366]
[1743004844769,1.21065588,624.05,623.24,0.32090366]
[1743004844968,1.21065588,624.04,623.24,0.32090366]
[1743004845168,1.21065588,624.07,623.24,0.32090366]
[1743004845369,1.21065588,624.06,623.24,0.32090366]
[1743004845576,1.21065588,624.05,623.24,0.32090366]
[1743004845875,1.21065588,624.04,623.24,0.32090366]
[1743004846076,1.364,624.04,623.24,0.32090366]
[1743004847076,1.379,624.03,623.24,0.32090366]
[1743004847274,2.58965588,624.03,623.24,0.32090366]
[1743004847472,2.58814083,624.03,623.24,0.32090366]
[1743004847875,3.48969199,624.03,623.24,0.32090366]
[1743004848678,1.388,624.02,623.24,0.32090366]
[1743004848879,2.59714083,624.02,623.24,0.32090366]
[1743004849078,1.186,624.01,623.24,0.32090366]
[1743004849373,2.39472138,624.01,623.24,0.32090366]
[1743004849578,1.111,624.0,623.24,0.32090366]
[1743004849773,2.31972138,624.0,623.24,0.32090366]
[1743004849978,3.22127254,624.0,623.24,0.32090366]
[1743004850180,2.01255116,624.0,623.24,0.32090366]
[1743004850379,1.111,624.0,623.24,0.32090366]
[1743004855980,1.111,624.0,623.27,1.19900431]
[1743004857078,1.094,623.99,623.27,1.19900431]
[1743004857284,1.094,623.99,623.28,0.32088307]
[1743004860983,1.044,623.98,623.28,0.32088307]
[1743004863687,1.044,623.98,623.48,1.19900431]
[1743004865682,1.044,623.98,623.34,1.19900431]
[1743004866589,1.058,623.97,623.34,1.19900431]
[1743004868193,1.058,623.97,623.28,0.32088307]
[1743004875795,1.035,623.96,623.28,0.32088307]
[1743004879604,1.194,623.95,623.28,0.32088307]
[1743004880205,1.194,623.95,623.33,1.19900431]
[1743004882909,1.194,623.95,623.28,1.19900431]
[1743004883105,2.164,623.95,623.28,1.19900431]
[1743004885314,2.164,623.95,623.3,1.19900431]
[1743004887814,2.164,623.95,623.44,1.19900431]
[1743004889111,3.245,623.95,623.44,1.19900431]
[1743004889912,3.245,623.95,623.51,1.19900431]
[1743004892115,3.245,623.95,623.52,1.19900431]
[1743004894321,3.245,623.95,623.58,1.19900431]
[1743004897128,3.245,623.95,623.39,1.19900431]
[1743004899934,1.21930371,623.94,623.37,1.19900431]
[1743004900134,1.21930371,623.93,623.37,1.19900431]
[1743004900334,1.21930371,623.92,623.37,1.19900431]
[1743004900528,1.21930371,623.93,623.37,1.19900431]
[1743004900726,1.21930371,623.92,623.37,1.19900431]
[1743004901033,0.90760835,623.94,623.37,1.19900431]
[1743004901232,2.12660421,623.93,623.37,1.19900431]
[1743004901434,1.21899586,623.92,623.37,1.19900431]
[1743004901628,1.21899586,623.91,623.37,1.19900431]
[1743004901828,1.21899586,623.9,623.37,1.19900431]
[1743004902031,2.12660421,623.89,623.27,1.19900431]
[1743004902234,0.90760835,623.89,623.27,1.19900431]
[1743004902633,1.21899586,623.92,623.27,1.19900431]
[1743004902935,1.21790828,623.92,623.27,1.19900431]
[1743004903132,1.21790828,623.93,623.27,1.19900431]
[1743004903330,1.21790828,623.92,623.27,1.19900431]
[1743004903531,1.21790828,623.91,623.12,1.19900431]
[1743004903729,1.21790828,623.9,623.12,1.19900431]
[1743004903933,2.10890828,623.89,623.12,1.19900431]
[1743004904133,1.21790828,623.88,623.12,1.19900431]
[1743004904333,1.21790828,623.87,623.12,1.19900431]
[1743004904734,0.90760835,623.86,623.12,1.19900431]
[1743004905530,2.12551663,623.88,622.94,1.19900431]
[1743004905732,1.21790828,623.87,622.94,1.19900431]
[1743004905934,0.2790776,623.86,622.94,1.19900431]
[1743004906234,0.90760835,623.85,622.94,1.19900431]
[1743004906434,2.31460835,623.85,622.94,1.19900431]
[1743004906629,1.284,623.84,622.94,1.19900431]
[1743004907134,2.19160835,623.84,622.94,1.19900431]
[1743004907730,2.19160835,623.84,622.86,1.19900431]
[1743004907931,1.284,623.84,622.93,0.27909103]
[1743004909739,1.284,623.84,623.04,1.19900431]
[1743004909939,1.139,623.83,623.04,1.19900431]
[1743004912343,1.139,623.83,623.19,1.19900431]
[1743004914640,1.139,623.83,623.22,1.19900431]
[1743004916736,2.229,623.83,623.22,1.19900431]
[1743004916939,2.229,623.83,623.13,1.19900431]
[1743004919040,2.229,623.83,623.08,1.19900431]
[1743004919838,4.35311955,623.83,623.08,1.19900431]
[1743004920043,3.13588378,623.83,623.08,1.19900431]
[1743004920338,3.13588378,623.83,623.02,1.19900431]
[1743004920339,1.21712853,623.82,623.02,1.19900431]
[1743004920746,3.13588378,623.83,623.02,1.19900431]
[1743004920946,2.229,623.83,623.02,1.19900431]
[1743004921244,3.569,623.83,623.02,1.19900431]
[1743004923148,3.569,623.83,623.03,1.19900431]
[1743004927749,2.12185085,623.82,622.99,1.19900431]
[1743004928852,0.90585833,623.82,622.99,1.19900431]
[1743004929055,2.12160858,623.82,622.99,1.19900431]
[1743004930549,0.90585833,623.82,622.99,1.19900431]
[1743004931155,3.569,623.83,622.99,1.19900431]
[1743004932352,4.713,623.83,622.99,1.19900431]
[1743004934155,4.713,623.83,623.22,1.19900431]
[1743004934353,5.824,623.83,623.22,1.19900431]
[1743004936452,5.824,623.83,623.17,1.19900431]
[1743004938361,5.824,623.83,623.16,1.19900431]
[1743004938860,0.90762934,623.82,623.16,1.19900431]
[1743004939361,2.72140498,623.82,623.16,1.19900431]
[1743004939561,1.503,623.82,623.12,1.19900431]
[1743004939764,2.72141364,623.82,623.12,1.19900431]
[1743004940561,0.90798508,623.81,623.12,1.19900431]
[1743004941358,2.12639872,623.81,623.12,1.19900431]
[1743004941562,0.90798508,623.8,623.12,1.19900431]
[1743004941763,1.80998508,623.8,623.1,1.19900431]
[1743004942064,3.02839872,623.8,623.1,1.19900431]
[1743004942264,2.12639872,623.79,623.1,1.19900431]
[1743004942464,0.90798508,623.79,623.1,1.19900431]
[1743004942667,0.995,623.78,623.1,1.19900431]
[1743004942964,1.21856529,623.77,623.1,1.19900431]
[1743004943165,0.995,623.78,623.1,1.19900431]
[1743004943166,1.21856529,623.76,623.1,1.19900431]
[1743004943365,1.21856529,623.75,623.1,1.19900431]
[1743004943567,1.21856529,623.74,623.1,1.19900431]
[1743004943865,1.21856529,623.73,623.1,1.19900431]
[1743004944066,1.21856529,623.72,623.1,1.19900431]
[1743004944259,1.21856529,623.71,623.1,1.19900431]
[1743004944463,1.21856529,623.7,623.1,1.19900431]
[1743004944667,1.21856529,623.69,623.08,1.19900431]
[1743004944865,1.21856529,623.68,623.08,1.19900431]
[1743004945066,1.21856529,623.67,623.08,1.19900431]
[1743004945467,1.21856529,623.66,623.08,1.19900431]
[1743004945667,1.21856529,623.65,623.08,1.19900431]
[1743004945969,0.90798508,623.66,623.08,1.19900431]
[1743004946169,0.90798508,623.65,623.08,1.19900431]
[1743004946762,2.12655037,623.68,623.08,1.19900431]
[1743004946962,1.21856529,623.67,623.08,1.19900431]
[1743004947167,2.12655037,623.67,623.08,1.19900431]
[1743004947470,1.18714103,623.67,623.08,1.19900431]
[1743004947673,0.27915595,623.67,623.08,1.19900431]
[1743004947867,0.27915595,623.67,622.9,1.19900431]
[1743004948772,0.90798508,623.74,622.9,1.19900431]
[1743004948967,1.21692792,623.74,622.9,1.19900431]
[1743004949372,2.124913,623.77,622.9,1.19900431]
[1743004949572,1.21692792,623.76,623.0,1.19900431]
[1743004949773,0.27914476,623.73,623.0,1.19900431]
[1743004950073,2.124913,623.77,623.0,1.19900431]
[1743004950270,2.12544637,623.77,623.0,1.19900431]
[1743004950468,0.90798508,623.77,623.0,1.19900431]
[1743004950972,1.255,623.76,623.0,1.19900431]
[1743004951571,1.255,623.76,622.93,1.19900431]
[1743004953473,1.255,623.76,622.97,1.19900431]
[1743004956077,1.255,623.76,622.87,0.27909439]
[1743004956078,1.255,623.76,623.0,1.19900431]
[1743004956474,1.486,623.75,623.0,1.19900431]
[1743004957884,1.486,623.75,623.17,1.19900431]
[1743004963685,1.486,623.75,623.16,1.19900431]
[1743004966087,1.486,623.75,623.18,1.19900431]
[1743004968391,1.486,623.75,623.23,1.19900431]
[1743004970393,1.486,623.75,623.19,1.19900431]
[1743004972293,1.486,623.75,623.25,1.19900431]
[1743004972596,2.524,623.88,623.25,1.19900431]
[1743004972790,1.2206581,623.87,623.25,1.19900431]
[1743004972990,2.524,623.88,623.25,1.19900431]
[1743004973387,2.13045242,623.87,623.25,1.19900431]
[1743004973587,1.22085848,623.86,623.25,1.19900431]
[1743004973788,2.524,623.88,623.25,1.19900431]
[1743004973994,1.22085146,623.87,623.25,1.19900431]
[1743004974192,0.90956392,623.86,623.25,1.19900431]
[1743004974689,0.90956392,623.85,623.25,1.19900431]
[1743004974990,1.22093435,623.87,623.25,1.19900431]
[1743004975194,2.524,623.88,623.25,1.19900431]
[1743004975592,1.22090462,623.87,623.25,1.19900431]
[1743004975789,1.22090462,623.86,623.25,1.19900431]
[1743004975994,0.90965618,623.87,623.25,1.19900431]
[1743004976190,2.524,623.88,623.25,1.19900431]
[1743004976191,0.90965618,623.86,623.25,1.19900431]
[1743004976597,2.524,623.88,623.25,1.19900431]
[1743004976790,1.22093939,623.87,623.03,1.19900431]
[1743004976994,2.524,623.88,623.03,1.19900431]
[1743004978496,1.308,623.88,623.03,1.19900431]
[1743004979091,1.308,623.88,623.07,1.19900431]
[1743004981393,1.308,623.88,623.26,1.19900431]
[1743004983495,1.308,623.88,623.27,1.19900431]
[1743004983901,2.2172717,623.88,623.27,1.19900431]
[1743004984103,1.308,623.88,623.27,1.19900431]
[1743004986303,1.059,623.89,623.27,1.19900431]
[1743004988208,1.059,623.89,623.32,1.19900431]
[1743004989907,1.96804262,623.89,623.33,1.19900431]
[1743004991309,1.059,623.89,623.33,1.19900431]
[1743004992209,1.059,623.89,623.35,1.19900431]
[1743004993210,1.22037311,623.88,623.35,1.19900431]
[1743004993709,1.22037311,623.87,623.35,1.19900431]
[1743004993912,1.22037311,623.86,623.35,1.19900431]
[1743004994312,0.90922529,623.87,623.35,1.19900431]
[1743004994511,0.90922529,623.86,623.35,1.19900431]
[1743004996012,1.22037311,623.86,623.35,1.19900431]
[1743004996213,1.22037311,623.85,623.35,1.19900431]
[1743004996413,1.22037311,623.88,623.35,1.19900431]
[1743004996612,1.22037311,623.87,623.35,1.19900431]
[1743004996810,1.22037311,623.86,623.29,1.19900431]
[1743004997113,2.12953861,623.85,623.29,1.19900431]
[1743004997310,0.9091655,623.85,623.29,1.19900431]
[1743004997510,1.22037311,623.84,623.29,1.19900431]
[1743004997706,2.12953861,623.84,623.29,1.19900431]
[1743004997909,0.9091655,623.84,623.29,1.19900431]
[1743004998610,1.22017028,623.85,623.29,1.19900431]
[1743004998814,1.22017028,623.84,623.29,1.19900431]
[1743004999020,1.22017028,623.83,623.27,1.19900431]
[1743004999219,1.22017028,623.82,623.27,1.19900431]
[1743004999415,2.12933578,623.81,623.27,1.19900431]
[1743004999615,0.9091655,623.81,623.27,1.19900431]
[1743004999811,1.22017028,623.8,623.27,1.19900431]
[1743005000011,1.21984645,623.79,623.27,1.19900431]
[1743005000315,1.21984645,623.78,623.27,1.19900431]
[1743005000517,1.21984645,623.77,623.27,1.19900431]
[1743005000717,1.21984645,623.76,623.27,1.19900431]
[1743005000918,1.21984645,623.75,623.27,1.19900431]
[1743005001115,1.21984645,623.74,623.27,1.19900431]
[1743005001315,1.21984645,623.73,623.27,1.19900431]
[1743005001520,1.21984645,623.72,623.27,1.19900431]
[1743005001819,1.21984645,623.71,623.22,1.19900431]
[1743005002118,2.12901195,623.7,623.22,1.19900431]
[1743005002319,1.21984645,623.69,623.22,1.19900431]
[1743005002518,1.21984645,623.68,623.22,1.19900431]
[1743005002722,2.12901195,623.67,623.22,1.19900431]
[1743005003020,1.21984645,623.66,623.22,1.19900431]
[1743005003215,1.21984645,623.71,623.22,1.19900431]
[1743005003417,1.21984645,623.7,623.22,1.19900431]
[1743005003615,1.21984645,623.69,623.22,1.19900431]
[1743005003814,1.21955584,623.68,623.22,1.19900431]
[1743005004022,0.9091655,623.7,623.06,1.19900431]
[1743005004222,1.21955584,623.7,623.06,1.19900431]
[1743005004521,2.12872134,623.69,623.06,1.19900431]
[1743005004721,1.21955584,623.68,623.06,1.19900431]
[1743005005314,0.9091655,623.68,623.06,1.19900431]
[1743005005616,1.21955584,623.67,623.06,1.19900431]
[1743005005921,0.9091655,623.7,623.01,1.19900431]
[1743005006117,2.12872134,623.7,623.01,1.19900431]
[1743005006319,0.9091655,623.7,623.01,1.19900431]
[1743005006519,0.9091655,623.69,623.01,1.19900431]
[1743005007116,0.9091655,623.68,623.01,1.19900431]
[1743005007623,1.139,623.69,623.01,1.19900431]
[1743005007824,1.139,623.69,622.83,1.19900431]
[1743005008420,0.90927745,623.68,622.83,1.19900431]
[1743005008820,1.139,623.69,622.83,1.19900431]
[1743005008821,1.405,623.67,622.83,1.19900431]
[1743005010425,1.31,623.66,622.83,1.19900431]
[1743005012526,1.31,623.66,623.03,1.19900431]
[1743005015335,1.31,623.66,622.95,1.19900431]
[1743005016340,1.323,623.65,622.95,1.19900431]
[1743005017241,1.323,623.65,623.19,1.19900431]
[1743005019245,1.323,623.65,622.85,1.19900431]
[1743005019745,1.323,623.65,622.86,0.27911118]
[1743005021446,1.323,623.65,622.89,1.19900431]
[1743005023246,1.323,623.65,622.9,1.19900431]
[1743005024643,1.323,623.65,621.47,3.49012058]
[1743005024949,1.323,623.65,622.85,0.27913804]
[1743005025150,1.323,623.65,621.57,0.32176585]
[1743005025949,1.323,623.65,621.58,0.27933073]
[1743005026150,1.323,623.65,623.04,1.19696529]
[1743005029453,1.323,623.65,623.05,1.19696529]
[1743005030450,1.304,623.64,623.05,1.19696529]
[1743005030851,1.295,623.63,623.05,1.19696529]
[1743005031557,1.295,623.63,623.1,1.19696529]
[1743005032956,1.449,623.62,623.1,1.19696529]
[1743005033357,1.449,623.62,623.15,1.19696529]
[1743005034853,1.474,623.61,623.15,1.19696529]
[1743005035160,1.474,623.61,623.1,1.19696529]
[1743005036659,1.474,623.61,623.04,1.19696529]
[1743005039063,1.474,623.61,622.99,1.19696529]
[1743005040662,1.748,623.6,622.99,1.19696529]
[1743005041065,1.748,623.6,623.02,1.19696529]
[1743005042862,1.101,623.59,623.02,1.19696529]
[1743005043367,1.101,623.59,623.04,1.19696529]
[1743005045967,1.101,623.59,610.65,14.3643181]
[1743005045968,1.101,623.59,622.99,1.19696529]
[1743005048166,1.101,623.59,623.0,1.19696529]
[1743005050369,1.101,623.59,622.96,1.19696529]
[1743005052165,1.101,623.59,622.97,1.19696529]
[1743005053668,1.101,623.59,623.0,1.19696529]
[1743005055667,1.101,623.59,623.04,1.19696529]
[1743005056066,1.264,623.58,623.04,1.19696529]
[1743005057772,1.264,623.58,623.1,1.19696529]
[1743005058277,2.858,623.58,623.1,1.19696529]
[1743005061479,1.22006385,623.55,623.18,1.19696529]
[1743005061680,0.90915515,623.57,623.18,1.19696529]
[1743005061880,2.1292123,623.56,623.18,1.19696529]
[1743005062084,1.22005715,623.55,623.18,1.19696529]
[1743005062382,0.90915515,623.56,623.18,1.19696529]
[1743005062682,0.90915515,623.54,623.07,1.19696529]
[1743005063180,1.07,623.55,623.07,1.19696529]
[1743005066792,1.07,623.55,622.74,0.94184951]
[1743005066793,1.07,623.55,623.11,1.19696529]
[1743005066989,1.252,623.54,623.11,1.19696529]
[1743005068796,1.252,623.54,623.15,1.19696529]
[1743005070497,1.074,623.53,623.15,1.19696529]
[1743005070800,1.074,623.53,623.21,1.19696529]
[1743005073190,2.29330756,623.53,623.21,1.19696529]
[1743005073396,1.074,623.53,623.21,1.19696529]
[1743005073797,1.074,623.53,623.11,1.19696529]
[1743005074897,2.29325997,623.53,623.11,1.19696529]
[1743005075097,3.20177275,623.53,623.11,1.19696529]
[1743005075300,1.98251278,623.53,623.11,1.19696529]
[1743005075599,0.90851278,623.52,623.11,1.19696529]
[1743005076193,1.074,623.53,623.11,1.19696529]
[1743005076398,1.21978305,623.52,623.0,1.19696529]
[1743005076698,1.074,623.53,623.0,1.19696529]
[1743005076897,1.21976693,623.52,623.0,1.19696529]
[1743005077099,1.074,623.53,623.0,1.19696529]
[1743005077294,1.21944081,623.52,623.0,1.19696529]
[1743005077493,1.21944081,623.51,623.0,1.19696529]
[1743005077698,0.90887229,623.51,623.0,1.19696529]
[1743005078102,1.21964387,623.5,623.0,1.19696529]
[1743005078302,1.21964387,623.49,623.0,1.19696529]
[1743005078503,1.21940402,623.48,623.0,1.19696529]
[1743005078703,1.21940402,623.47,622.96,1.19696529]
[1743005078903,1.21940402,623.46,622.96,1.19696529]
[1743005079098,0.90879517,623.48,622.96,1.19696529]
[1743005079302,1.074,623.53,622.96,1.19696529]
[1743005079303,1.21961503,623.47,622.96,1.19696529]
[1743005079505,1.21961503,623.46,622.96,1.19696529]
[1743005079802,2.12856994,623.45,622.96,1.19696529]
[1743005080107,2.4258648,623.45,622.96,1.19696529]
[1743005080401,1.21979791,623.44,622.96,1.19696529]
[1743005080602,1.21979791,623.43,622.96,1.19696529]
[1743005080804,1.21979791,623.42,622.96,1.19696529]
[1743005081002,0.90890133,623.42,622.96,1.19696529]
[1743005081403,0.90890133,623.41,622.89,1.19696529]
[1743005081803,1.517,623.45,622.89,1.19696529]
[1743005082003,1.21960135,623.44,622.89,1.19696529]
[1743005082303,1.21960135,623.43,622.89,1.19696529]
[1743005082505,1.21960135,623.42,622.89,1.19696529]
[1743005082802,1.21937068,623.41,622.89,1.19696529]
[1743005083003,0.90880531,623.43,622.89,1.19696529]
[1743005083204,1.21939853,623.42,622.89,1.19696529]
[1743005083397,1.21939853,623.41,622.89,1.19696529]
[1743005083600,1.095,623.42,622.89,1.19696529]
[1743005083798,1.257,623.4,622.89,1.19696529]
[1743005084402,1.257,623.4,622.79,1.19696529]
[1743005085204,0.968,623.39,622.79,1.19696529]
[1743005086305,0.968,623.39,622.73,1.19696529]
[1743005088006,0.968,623.39,622.83,1.19696529]
[1743005089106,2.18660356,623.39,622.83,1.19696529]
[1743005089407,2.18628348,623.39,622.83,1.19696529]
[1743005089606,0.968,623.39,622.83,1.19696529]
[1743005089802,2.18610866,623.39,622.83,1.19696529]
[1743005090004,1.21810866,623.38,622.83,1.19696529]
[1743005090203,1.21810866,623.37,622.75,1.19696529]
[1743005090407,1.21810866,623.38,622.75,1.19696529]
[1743005090601,1.21810866,623.37,622.75,1.19696529]
[1743005090805,1.21810866,623.36,622.75,1.19696529]
[1743005091001,1.21787276,623.38,622.75,1.19696529]
[1743005091408,2.18587276,623.39,622.75,1.19696529]
[1743005091608,1.21787276,623.38,622.75,1.19696529]
[1743005091809,1.21787276,623.37,622.75,1.19696529]
[1743005092112,1.21787276,623.38,622.75,1.19696529]
[1743005092304,2.18587276,623.39,622.75,1.19696529]
[1743005092510,1.21787276,623.38,622.75,1.19696529]
[1743005092711,1.21787276,623.37,622.67,1.19696529]
[1743005092909,1.21787276,623.36,622.67,1.19696529]
[1743005093109,1.21787276,623.35,622.67,1.19696529]
[1743005093303,1.21787276,623.34,622.67,1.19696529]
[1743005093507,1.21787276,623.33,622.67,1.19696529]
[1743005093707,1.21787276,623.34,622.67,1.19696529]
[1743005093905,1.21787276,623.33,622.67,1.19696529]
[1743005094108,1.21787276,623.34,622.67,1.19696529]
[1743005094308,1.399,623.35,622.67,1.19696529]
[1743005094910,2.31094344,623.34,622.67,1.19696529]
[1743005095611,1.094,623.34,622.47,0.27928702]
[1743005096807,1.094,623.34,622.32,1.19696529]
[1743005097809,1.094,623.34,622.33,0.27932849]
[1743005099513,1.094,623.34,622.29,1.19696529]
[1743005100209,1.094,623.34,622.28,1.19696529]
[1743005100909,1.094,623.34,622.29,0.27933297]
[1743005102515,1.094,623.34,622.28,1.19696529]
[1743005102710,0.32086247,623.32,622.28,1.19696529]
[1743005102911,1.21582632,623.31,622.28,1.19696529]
[1743005103114,0.32087792,623.29,622.56,1.19696529]
[1743005103310,1.21582632,623.28,622.56,1.19696529]
[1743005103515,1.53671453,623.27,622.56,1.19696529]
[1743005103717,1.53671968,623.26,622.56,1.19696529]
[1743005103917,1.53672483,623.25,622.56,1.19696529]
[1743005104117,1.53672998,623.24,622.56,1.19696529]
[1743005104419,0.32089851,623.25,622.56,1.19696529]
[1743005104420,1.53673513,623.23,622.56,1.19696529]